Cogmind - Beta 15 @@@ ROGUE MODE // 2025.06.11 @ 15:59:49 Player: Mogwok Wargfriend Result: Destroyed by G-47 Trooper with Particle Gun Performance ------------- Evolutions (3) 1500 Regions Visited (4) 800 Robots Destroyed (141) 705 Value Destroyed (3685) 3685 Prototype IDs (4) 80 Alien Tech Used (0) 0 Bonus (329) 329 TOTAL SCORE: 7099 Bonus ------- High Alert Combat Kills 329 Cogmind --------- Core Integrity 0/700 Matter 213/300 Energy 98/100 System Corruption 6% Temperature Cool (18) Movement Core (50) Location -7/Factory Parts ------- > --- POWER (1) -------- (None) > --- PROPULSION (4) --- (None) > --- UTILITY (6) ------ Core Analyzer Improved Propulsion Shielding > --- WEAPON (2) ------- (None) > --- INVENTORY (5) ---- Cooled VTOL Module Medium Matter Pod (100) Arc Projector Plasma Cutter Heavy Hammer Peak State ------------ > --- POWER ------------ Improved Ion Engine > --- PROPULSION ------- Armored Huge Wheel Armored Huge Wheel > --- UTILITY ---------- Coolant Injector Small Storage Unit Advanced Targeting Computer Advanced Targeting Computer Improved Medium Armor Plating System Shield > --- WEAPON ----------- Arc Projector Arc Projector > --- INVENTORY -------- Deuterium Engine Armored Huge Wheel Medium Matter Pod Improved Targeting Computer Improved Grenade Launcher Plasma Cutter Scythe [Rating: 46] Favorites ----------- Power Ion Engine Engine Ion Engine Propulsion Aluminum Leg Leg Aluminum Leg Wheel Armored Huge Wheel Utility Small Storage Unit Device Seismic Detector Storage Small Storage Unit Processor Advanced Targeting Computer Hackware System Shield Protection Hardened Light Armor Plating Weapon Improved Grenade Launcher Energy Gun Arc Projector Ballistic Gun Assault Rifle Launcher Improved Grenade Launcher Special Weapon Plasma Cutter Slashing Weapon Scythe Build | -11 -10 -9 -8 -7 ------- Run | Yrd Mat Mat Mat Fac Slots Evolved 6 | . . 2 2 2 Power . | . . . . . Propulsion 2 | . . 1 1 . Utility 4 | . . 1 1 2 Weapon . | . . . . . Parts Attached 67 | 7 8 21 13 18 Power 8 | 1 2 1 2 2 Engine 8 | 1 2 1 2 2 Core . | . . . . . Reactor . | . . . . . Propulsion 13 | 2 2 3 2 4 Treads . | . . . . . Leg 6 | 2 1 3 . . Wheel 7 | . 1 . 2 4 Hover . | . . . . . Flight . | . . . . . Utility 23 | 2 . 6 4 11 Device 2 | 1 . . . 1 Storage 3 | 1 . 1 . 1 Processor 6 | . . 1 2 3 Hackware 2 | . . . 2 . Protection 10 | . . 4 . 6 Artifact . | . . . . . Weapon 23 | 2 4 11 5 1 Energy Gun 10 | 2 . 5 3 . Energy Cannon . | . . . . . Ballistic Gun 4 | . 2 2 . . Ballistic Cannon . | . . . . . Launcher 6 | . 2 3 1 . Special Weapon 1 | . . 1 . . Impact Weapon . | . . . . . Slashing Weapon 2 | . . . 1 1 Piercing Weapon . | . . . . . Special Melee Weapon . | . . . . . Unidentified Prototypes 2 | . . 2 . . Parts Lost 25 | . 1 2 5 17 Power 4 | . . 1 1 2 Propulsion 5 | . 1 . . 4 Utility 10 | . . . 2 8 Weapon 6 | . . 1 2 3 Highest Loss Streak 7 | . 1 1 2 7 To Critical Strikes 1 | . . . . 1 Average Backups 7 | 2 7 7 6 6 Power . | . 1 . . . Propulsion 1 | 1 . 1 1 . Utility 1 | . 1 2 1 1 Weapon 2 | . 4 2 1 1 Tool/Special . | . . . . . Unused Backups 14 | . 3 4 3 4 Power . | . . . . . Propulsion 7 | . 1 2 3 1 Utility 3 | . 1 . . 2 Weapon 4 | . 1 2 . 1 Tool/Special . | . . . . . Average Slot Usage (%) 88 | . 100 94 79 74 Engine 10 | . 14 10 9 6 Leg 16 | . 22 31 . . Wheel 7 | . 5 . 17 14 Device 4 | . 14 . . 5 Storage 10 | . 14 11 9 6 Processor 6 | . . 7 9 8 Hackware 2 | . . . 6 5 Protection 8 | . . 10 9 11 Energy Gun 8 | . 3 10 10 8 Ballistic Gun 2 | . 11 . . . Launcher 7 | . 13 10 4 1 Slashing Weapon 1 | . . . 2 2 Peak Build Rating 46 | 7 7 15 37 46 Average Rating 21 | 5 6 13 33 40 On Entrance 13 | . 7 7 15 37 Naked Turns . | . . . . . Heaviest Build 38 | 15 16 29 26 38 Greatest Support 56 | 20 20 30 56 56 Greatest Overweight (x) 2 | . 1 . 2 1 Average Overweight (x) . | . . . . . Largest Inventory Capacity 8 | 8 8 8 8 8 Average Capacity 7 | 7 8 8 8 7 Most Carried 8 | 5 8 8 8 8 Average Carried 7 | 2 7 7 7 7 Final Capacity 8 | 8 8 8 8 5 Final Carried 8 | 5 8 8 8 5 Class Distribution -------------------- 100% | Mutant Dominant Class ---------------- Mutant | -10/Materials Mutant | -9/Materials Mutant | -8/Materials Mutant | -7/Factory Resources | -11 -10 -9 -8 -7 ----------- Run | Yrd Mat Mat Mat Fac Matter Collected 2969 | 270 771 985 654 289 Remotely . | . . . . . Salvage Created 3277 | 103 305 1060 994 815 Parts 237 | 11 32 79 60 55 Haulers Intercepted 7 | . 1 2 2 2 Recyclers Shooed 3 | . . 2 1 . Parts Field Recycled . | . . . . . Retrieved Matter . | . . . . . Parts Self-Destructed . | . . . . . Prevented . | . . . . . Kills | -11 -10 -9 -8 -7 ------- Run | Yrd Mat Mat Mat Fac Combat Hostiles Destroyed 77 | . 15 25 23 14 Melee 4 | . . . 1 3 Guns 18 | . 1 10 4 3 AOE 54 | . 14 14 18 8 Classes Destroyed 14 | 2 6 3 1 2 Worker 16 | . 3 3 4 6 Builder 12 | . 2 4 4 2 Tunneler 4 | 3 . . . 1 Hauler 7 | . 1 2 2 2 Recycler 6 | 1 . 4 1 . Mechanic 3 | . . . 1 2 Operator 2 | . . 2 . . Watcher 13 | . 3 5 3 2 Swarmer 17 | . 3 11 . 3 Grunt 38 | . 12 3 16 7 Brawler 3 | . . 1 2 . Sentry 17 | . . 10 5 2 Specialist 1 | . . . . 1 Programmer 2 | . . . . 2 Best Kill Streak 12 | 4 7 12 11 11 Combat Bots Only 6 | . 3 4 6 4 Max Kills in Single Turn 8 | 1 2 4 4 8 Gunslinging . | . . . . . Exploded 4 | . 2 3 4 2 Melee 1 | . . . 1 1 Uniques/NPCs Destroyed . | . . . . . Combat | -11 -10 -9 -8 -7 -------- Run | Yrd Mat Mat Mat Fac Hostile Shots Fired 522 | . 45 106 76 295 Missed 186 | . 19 42 26 99 Hits 336 | . 26 64 50 196 Projectile 336 | . 26 64 50 196 Critical Strikes 10 | . . 3 4 3 Damage Taken 5655 | . 453 1015 782 3405 Core 1036 | . 61 158 117 700 Absorbed by Shields . | . . . . . Redirected to Shielding 85 | . . . . 85 Ignored by Resistances 89 | . . . . 89 Regen/Repaired (Parts) 177 | . . 177 . . Core Remaining (%) 78 | 100 75 60 78 . Volleys Fired 260 | 7 50 93 65 45 Largest 2 | 2 2 2 2 2 Hottest 110 | 80 50 86 110 110 Shots Fired 401 | 14 58 136 119 74 Gun 255 | 14 10 87 86 58 Cannon . | . . . . . Launcher 141 | . 48 44 33 16 Special 5 | . . 5 . . Kinetic 17 | . 10 7 . . Thermal 6 | . . 5 1 . Explosive 141 | . 48 44 33 16 Electromagnetic 237 | 14 . 80 85 58 Robot Hit Streak 21 | 4 2 18 21 15 Robot Miss Streak 5 | 2 2 5 2 2 Penetration Max . | . . . . . Secondary Targets 1 | . . . . 1 Max Gunslinging Chain 1 | . . . . 1 Shots Hit Robots 240 | 7 15 69 86 63 Core Hits 242 | 4 45 66 78 49 Critical Kills . | . . . . . Critical Parts Destroyed . | . . . . . Critical Strikes 5 | . . 1 1 3 Corrupt 2 | . . 1 1 . Sever 3 | . . . . 3 Melee Attacks 33 | . . . 16 17 Impact . | . . . . . Slashing 33 | . . . 16 17 Piercing . | . . . . . Sneak Attacks 2 | . . . 2 . Combat Hostiles . | . . . . . Follow-up Attacks . | . . . . . Damage Inflicted 10934 | 135 1627 2533 3918 2721 Guns 2117 | 90 52 655 890 430 Cannons . | . . . . . Explosions 8248 | 45 1575 1878 2832 1918 Melee 569 | . . . 196 373 Ramming . | . . . . . Kinetic 97 | . 52 45 . . Thermal 1080 | 45 . 27 394 614 Explosive 7099 | . 1575 1851 2452 1221 Electromagnetic 2089 | 90 . 610 876 513 Impact . | . . . . . Slashing 569 | . . . 196 373 Piercing . | . . . . . Highest Corruption 6 | . 2 . . 6 Average Corruption 2 | . 1 . . 2 Corruption Purged . | . . . . . Corruption Blocked . | . . . . . Effects 15 | . 8 . . 7 Message Errors 2 | . 2 . . . Matter Fused 5 | . 3 . . 2 Heat Flow Errors 1 | . . . . 1 Energy Discharges 3 | . 1 . . 2 Data Loss (minor) 1 | . . . . 1 Data Loss (major) 2 | . 1 . . 1 Weapon Failures 1 | . 1 . . . Overload Shots . | . . . . . Overflow Damage 224 | . 20 76 78 50 Projectiles . | . . . . . Explosions 182 | . 20 76 43 43 Melee 42 | . . . 35 7 Knockbacks . | . . . . . Impact . | . . . . . Kinetic . | . . . . . Secondary . | . . . . . Self-Inflicted Damage 789 | . 116 160 51 462 Shots 20 | . 5 6 2 7 Rammed . | . . . . . Targets Rammed . | . . . . . Kicked . | . . . . . Crushed . | . . . . . Highest Temperature 255 | 54 15 255 201 199 Average Temperature 58 | 29 4 57 59 72 Received Heat Transfer 1188 | . 156 270 369 393 Siege Activations . | . . . . . Martial Activations . | . . . . . Shielding Activations . | . . . . . Robots Disrupted 2 | . . . . 2 Combat Hostiles 2 | . . . . 2 Robots Corrupted 3 | . . 1 1 1 Combat Hostiles 1 | . . 1 . . Parts Fried 12 | . . 2 5 5 Impact Corruptions . | . . . . . Robots Melted . | . . . . . Combat Hostiles . | . . . . . Parts Melted . | . . . . . Heat Transferred 987 | 50 . 50 487 400 Parts Sabotaged . | . . . . . Parts Stolen . | . . . . . Parts Stripped . | . . . . . Power Chain Reactions 8 | 1 . 1 5 1 Alert | -11 -10 -9 -8 -7 ------- Run | Yrd Mat Mat Mat Fac Maximum Alert Level 3 | . 1 2 3 2 Low Security (%) 26 | 100 32 6 . 74 Level 1 43 | . 67 41 65 4 Level 2 28 | . . 51 25 20 Level 3 1 | . . . 9 . Level 4 . | . . . . . Level 5 . | . . . . . High Security . | . . . . . Max Security . | . . . . . Peak Influence 751 | 10 311 629 751 663 Initial 248 | . . 123 248 167 Average 312 | 1 200 399 412 197 Influence Increases 3933 | 20 709 1252 954 998 Destroy 0b10 Robot/C 1540 | . 300 500 460 280 Destroy 0b10 Robot/NC 310 | 20 45 95 75 75 Destroy Leader 370 | . 58 164 100 48 Successful Hack 96 | . 34 38 24 . Disable Machine 525 | . 45 120 45 315 Destroy Structure 852 | . 212 320 190 130 Lose Combat Pursuer 240 | . 15 15 60 150 Influence Decreases 3323 | 20 416 956 1175 756 Entered New Map 712 | . . 170 341 201 Time Decay 1901 | 20 406 616 474 385 Lost Part 250 | . 10 20 50 170 Lost Ally 10 | . . . 10 . Purge Threat 450 | . . 150 300 . Squads Dispatched 14 | . 4 2 . 8 Investigation 4 | . 3 . . 1 Extermination 1 | . . . . 1 Reinforcement 5 | . 1 1 . 3 Assault 1 | . . 1 . . Garrison 3 | . . . . 3 Intercept . | . . . . . Searches Triggered . | . . . . . Construction Impeded 2 | . . 1 . 1 Haulers Reinforced 1 | . . . . 1 Active Scanning Responses . | . . . . . Cargo Convoy Interrupts 1 | . . . . 1 Stealth | -11 -10 -9 -8 -7 --------- Run | Yrd Mat Mat Mat Fac Distress Signals 8 | . 3 2 1 2 Communications Jammed . | . . . . . Distress Signals . | . . . . . Times Spotted 139 | . 19 36 33 51 Peak Tracking Total 13 | . 3 5 6 13 Tactical Retreats 13 | . 2 1 3 7 Traps | -11 -10 -9 -8 -7 ------- Run | Yrd Mat Mat Mat Fac Traps Triggered 7 | . 6 . . 1 Indirectly . | . . . . . Trap Hack Attempts . | . . . . . Triggered . | . . . . . Disarmed . | . . . . . Reprogrammed . | . . . . . Reused . | . . . . . Traps Extracted . | . . . . . Installed . | . . . . . Triggered . | . . . . . Machines | -11 -10 -9 -8 -7 ---------- Run | Yrd Mat Mat Mat Fac Machines Disabled 37 | . 3 10 3 21 Max in Single Turn 12 | . 1 2 1 12 Machines Repaired . | . . . . . Machines Dismantled . | . . . . . Machines Sabotaged . | . . . . . Overloaded Fab Kills . | . . . . . Hacking | -11 -10 -9 -8 -7 --------- Run | Yrd Mat Mat Mat Fac Machines Accessed 36 | . 5 14 8 9 Terminals 25 | . 5 10 7 3 Fabricators . | . . . . . Repair Stations 4 | . . 2 . 2 Recycling Units 3 | . . 1 . 2 Scanalyzers 3 | . . 1 1 1 Garrison Access 1 | . . . . 1 Total Hacks 113 | . 18 40 34 21 Successful 66 | . 9 22 24 11 Failed 47 | . 9 18 10 10 Catastrophic 8 | . 2 2 1 3 Database Lockouts . | . . . . . Manual 52 | . 12 20 14 6 Terminals 71 | . 18 28 20 5 Fabricators . | . . . . . Repair Stations 14 | . . 9 . 5 Recycling Units 3 | . . 1 . 2 Scanalyzers 23 | . . 2 14 7 Garrison Access 2 | . . . . 2 Terminal Hacks 25 | . 7 9 8 1 Robot Analysis 7 | . 5 2 . . Prototype ID Bank 1 | . . . 1 . Open DSF 1 | . . . . 1 Branch Access Points 2 | . . 1 1 . Emergency Access Points 1 | . . . 1 . Terminal Index 2 | . . 1 1 . Alert Level 3 | . . 2 1 . Unreport Threat 3 | . . 1 2 . Locate Traps 3 | . . 2 1 . Patrol Status 1 | . 1 . . . Investigation Status 1 | . 1 . . . Fabricator Hacks . | . . . . . Repair Station Hacks 8 | . . 7 . 1 Scan Component 5 | . . 4 . 1 Repair 3 | . . 3 . . Recycling Unit Hacks 1 | . . 1 . . Report Inventory 1 | . . 1 . . Scanalyzer 20 | . . 2 12 6 Insert Component 9 | . . 1 6 2 Analyze 11 | . . 1 6 4 Garrison Access Hacks . | . . . . . Unauthorized Hacks 12 | . 2 3 4 3 Terminals 9 | . 2 3 4 . Assimilate 3 | . . 1 2 . Botnet 2 | . 1 1 . . Operators 4 | . 1 1 2 . Fabricators . | . . . . . Repair Stations . | . . . . . Recycling Units 2 | . . . . 2 Reject 2 | . . . . 2 Scanalyzers 1 | . . . . 1 Researchers 1 | . . . . 1 Garrison Access . | . . . . . Data Cores Recovered . | . . . . . Used . | . . . . . Hacking Detections 30 | . 5 13 6 6 Full Trace Events 1 | . . . . 1 Feedback Events . | . . . . . Feedback Blocked . | . . . . . Robot Schematics Acquired . | . . . . . Robots Built . | . . . . . Authchips . | . . . . . Time . | . . . . . Total Robot Build Rating . | . . . . . Part Schematics Acquired 9 | . . 1 6 2 Parts Built . | . . . . . Authchips . | . . . . . Time . | . . . . . Total Part Build Rating . | . . . . . Parts Repaired 3 | . . 3 . . Time 90 | . . 90 . . Parts Recycled . | . . . . . Recycled Matter . | . . . . . Retrieved Matter . | . . . . . Retrieved Components . | . . . . . Parts Scanalyzed 9 | . . 1 6 2 Part Schematics Acquired 9 | . . 1 6 2 Parts Damaged . | . . . . . Bothacking | -11 -10 -9 -8 -7 ------------ Run | Yrd Mat Mat Mat Fac Used RIF Installer . | . . . . . Robots Hacked . | . . . . . Non-combat . | . . . . . Combat . | . . . . . Robot Hacks Applied . | . . . . . Relay Couplers Released . | . . . . . Fabnet Peak Effective % . | . . . . . Robots Rewired 1 | . . . . 1 Allies Hacked . | . . . . . Hacks Repelled . | . . . . . Allies | -11 -10 -9 -8 -7 -------- Run | Yrd Mat Mat Mat Fac Total Allies 3 | . . 1 1 1 Largest Group 1 | . . 1 1 1 Highest-Rated Group 32 | . . 10 10 32 Highest-Rated Ally 32 | . . 10 10 32 Total Orders . | . . . . . Ally Attacks . | . . . . . Total Damage . | . . . . . Kills . | . . . . . Allies Corrupted 1 | . . . . 1 Allies Melted . | . . . . . Intel | -11 -10 -9 -8 -7 ------- Run | Yrd Mat Mat Mat Fac Active Infowar (turns) 1303 | 38 1119 146 . . Seismic 1303 | 38 1119 146 . . Robot Analysis Total 7 | . 5 2 . . Derelict Logs Recovered . | . . . . . Drone Launches . | . . . . . Drone Recoveries . | . . . . . Exploration | -11 -10 -9 -8 -7 ------------- Run | Yrd Mat Mat Mat Fac Turns Passed 5654 | 133 1119 2058 1201 1143 Spaces Moved 3799 | 86 857 1308 648 900 Core 55 | 8 . . . 47 Treads . | . . . . . Legs 1915 | 78 518 1308 11 . Wheels 1829 | . 339 . 637 853 Hover . | . . . . . Flight . | . . . . . Fastest Speed 50 | 50 95 120 100 50 Average Speed 109 | 113 110 120 100 99 Slowest Speed 260 | 120 120 120 260 115 Overloaded Moves . | . . . . . Propulsion Burnouts . | . . . . . Robots Hopped . | . . . . . Potential Cave-ins 12 | . 10 2 . . Cave-ins Triggered . | . . . . . Exploration Rate (%) 50 | 4 81 84 57 24 Regions Visited 4 Branch Regions . Pre-discovered Areas . | . . . . . Known Exits Taken . | . . . . . Unknown Exits Taken 4 | 1 1 1 1 . Scrap Searched . | . . . . . Spaces Dug 35 | . 11 8 16 . Terrain Destroyed 1110 | 4 291 394 285 136 Melee 9 | . . . 9 . Projectile . | . . . . . AOE 1101 | 4 291 394 276 136 Terrain Rammed . | . . . . . Walls Destroyed . | . . . . . Machines Disabled . | . . . . . Actions | -11 -10 -9 -8 -7 --------- Run | Yrd Mat Mat Mat Fac Total 4846 | 104 976 1665 1052 1049 Wait 568 | . 46 199 290 33 Move 3795 | 85 856 1307 647 900 Hop . | . . . . . Pick Up 39 | 5 8 13 7 6 Fast Attach 37 | 7 1 11 7 11 Attach 14 | . 1 4 4 5 Detach 5 | . . 1 2 2 Swap 30 | . 6 12 4 8 Drop 54 | . 8 25 10 11 Fire 260 | 7 50 93 65 45 Melee 33 | . . . 16 17 Ram . | . . . . . Kick . | . . . . . Crush . | . . . . . Escape Stasis . | . . . . . Rewire 11 | . . . . 11 Trap . | . . . . . Miscellaneous . | . . . . . Route ------- -11/Scrapyard -10/Materials (discovered 4 exits: *Mat x2 / [*Min] / [*Sub]) -9/Materials (discovered 3 exits: *Mat x2 / *Min) -8/Materials (discovered 2 exits: *Fac x2) -7/Factory (discovered 2 exits: [*Fac] / [*Sto]) History --------- Turn | Location | Event 17 | -11/Scrapyard | Discovered new exit (range 13) 134 | -11/Scrapyard | Entered Materials 330 | -10/Materials | Build established: Mutant 464 | -10/Materials | Discovered new exit (range 7) 620 | -10/Materials | Discovered new exit (range 16) 721 | -10/Materials | Discovered new exit (range 11) 834 | -10/Materials | Derelicts attacked the area 1168 | -10/Materials | Discovered new exit (range 16) 1253 | -10/Materials | Entered another Materials area 1253 | -9/Materials | Evolved 2 slots: Propulsion x1, Utility x1 1603 | -9/Materials | Repaired Imp. Grenade Launcher 1631 | -9/Materials | Repaired Aluminum Leg 2006 | -9/Materials | Discovered new exit (range 7) 2578 | -9/Materials | Identified exit to Mines 2746 | -9/Materials | Discovered new exit (range 15) 2862 | -9/Materials | Discovered new exit (range 10) 2940 | -9/Materials | Repaired Aluminum Leg 3253 | -9/Materials | First assault squad dispatched 3311 | -9/Materials | Entered another Materials area 3311 | -8/Materials | Evolved 2 slots: Propulsion x1, Utility x1 4130 | -8/Materials | Discovered new exit (range 11) 4426 | -8/Materials | Discovered new exit (range 16) 4512 | -8/Materials | Entered Factory 4512 | -7/Factory | Evolved 2 slots: Utility x2 4515 | -7/Factory | Identified exit to DSF 4833 | -7/Factory | Discovered new exit (range 11) 5415 | -7/Factory | Garrison activated, responded to threat 5443 | -7/Factory | Cargo convoy interrupted 5476 | -7/Factory | Lost 4 parts (1p2u1w) 5487 | -7/Factory | Core integrity fell below 50% 5540 | -7/Factory | Lost 7 parts (1p2n3u1w) 5576 | -7/Factory | Core integrity fell below 20% 5636 | -7/Factory | Discovered new exit (range 15) 5655 | -7/Factory | Destroyed by G-47 Trooper with Particle Gun Last Messages --------------- 05575_ Penetrated by Slug. 05576_ The unstable cave ceiling collapses. 05597_ Acquired Imp. Propulsion Shielding. 05601_ Acquired Cld. VTOL Module. 05610_ Acquired Hvy. Hammer. 05631_ Acquired Med. Reactive Plating. 05634_ Penetrated by Slug. 05634_ Scythe destroyed. 05636_ EXIT=FOUND 05637_ Penetrated by Slug. 05639_ System corrupted: Matter fused (-8). 05642_ Triggered Blade Trap. 05642_ Massive razor-sharp blades shoot up from within the floor. 05642_ Med. Reactive Plating severed. 05643_ Acquired Med. Reactive Plating. 05653_ Penetrated by Slug. 05653_ Med. Reactive Plating destroyed. 05654_ Arm. Huge Wheel destroyed. 05655_ Knocked back. Map ----- +----------------------------------------------------+ | ????????? #?# ???????? | | ?????????? "" "" #?# ???????? | | ????????????F "" #?# ???????? | | ???????????""""" #?# ???????? | | ??????????? ?? #?# ???????? | | ??????????????? #?# ############????????? | | ???????????????##### ### ########????????????? | | ???????????????????# # #????????????? | | ???????????????????# # """"#????????????? | | ???????????????????# """ + """"#????????????? | | ???????????????????# """ i # """"#????????????? | | ???????????????????# ^"""hh #! """"#????????????? | | ???????????????????# ### #????????????? | | ???????????????????# """ #?########????????????? | | ???????????????????# """ ##????????????????????? | | ?????????????#+##### """ k #????????????????????? | | ?????????????# #????????????????????? | | ?????????????# ##### #????????????????????? | | ???????????????????#####; #????????????????????? | | ???????????????????????## #????????????????????? | | ????????????????????????#gH #????????????????????? | | ???????????????????????## #????????????????????? | | ??????????????????????##; g###??????????????????? | | ??????????????????????# g #??????????????????? | | ??????????????????????# g ####???????????????? | | ??????????????????????# @ ""?????????? | | ??????????????????????# < ????????? | | ??????????????????????# = ????????? | | ??????????????????????# ##########?????????? | | ??????????????????????# #??????????????????? | | ??????????????????????## ##??????????????????? | | ???????????????????????# #???????????????????? | | ???????????????????????# ???????????????????? | | ???????????????????????# ##??????????????????? | | ???????????????????????# #???????????????????? | | ???????????????????????# #???????????????????? | | ??????????????????????? #???????????????????? | | ???????????????????????###+###???????????????????? | | ?????????????????????????????????????????????????? | | ?????????????????????????????????????????????????? | | ?????????????????????????????????????????????????? | | ?????????????????????????????????????????????????? | | ?????????????????????????????????????????????????? | | ?????????????????????????????????????????????????? | | ?????????????????????????????????????????????????? | | ?????????????????????????????????????????????????? | | ?????????????????????????????????????????????????? | | ?????????????????????????????????????????????????? | | ?????????????????????????????????????????????????? | | | +----------------------------------------------------+ Best States ------------- Heat Dissipation 34 Coolant Potential 65 Energy Generation 16 Energy Capacity 290 Matter Stores 300 Matter Capacity 300 Sight Range 16 Terrain Scan Density 10 Armor Coverage 450 Resistance: KI 30 Propulsion Shielding 66 Weapon Shielding 33 Evasion (%) 55 Targeting Accuracy 16 Core Analysis 6 Offensive Hacking 10 Defensive Hacking 10 Item Schematics ----------------- Imp. Grenade Launcher | -9/Materials | Scanalyzed Hrd. Light Armor Plating | -8/Materials | Scanalyzed Arm. Huge Wheel | -8/Materials | Scanalyzed Axe | -8/Materials | Scanalyzed Imp. Ion Engine | -8/Materials | Scanalyzed Med. Matter Pod | -8/Materials | Scanalyzed Plasma Cutter | -8/Materials | Scanalyzed Imp. Medium Armor Plating | -7/Factory | Scanalyzed Scythe | -7/Factory | Scanalyzed Robot Schematics ------------------ None Fabricated ------------ Nothing Repaired ---------- Imp. Grenade Launcher | 56% | -9/Materials Aluminum Leg | 25% | -9/Materials Aluminum Leg | 14% | -9/Materials Alien Tech Used ----------------- None Achievements -------------- None Challenges ------------ None Game ------ Seed SpreadPiercingWings Manual? 0 Play Time 00:53:01 Cumulative 209.6 hours Start 2025.06.11 @ 15:09:32 End 2025.06.11 @ 15:59:49 Sessions 1 Manual Loads 0 Difficulty Rogue Special Mode None Game No. 199 Rogue 199 Adventurer 0 Explorer 0 Win Type - Total 1 Types 1/0/0/0/0/0/0/0/0/0 Lore% 42 Gallery% 58 Achievement% 47 Wizard Run 0 Options --------- Layout 2 ASCII 1 Keyboard 1 Movement Numpad Keybinds 0 Fullscreen 2 Font 32/TamsynBold Map View 50x44 Zoom Use 0% Tactical HUD 1 Map Filters NONE Filters NONE Steam 1 RUN: b793ae4a-50dd-4a65-9baf-ec2cd01b7ad2